bitfinex/quotes_ETHUSD_20260107
["timestamp","ask_amount","ask_price","bid_price","bid_amount"]
[1767778306272,1.08129798,3222.8,3221.3,0.95112505]
[1767778306476,0.98823865,3222.3,3220.9,0.95312505]
[1767778306656,0.98823865,3222.1,3220.9,0.95312505]
[1767778306833,1.01153095,3222.0,3220.9,0.002]
[1767778308135,1.01153095,3222.0,3220.6,0.98417516]
[1767778308333,1.39975566,3221.9,3220.6,0.95312505]
[1767778308541,0.0232923,3221.8,3220.6,0.95312505]
[1767778311475,0.98823865,3221.7,3220.5,0.002]
[1767778311638,0.98823865,3221.5,3220.5,0.002]
[1767778311837,0.98823865,3221.5,3220.1,0.002]
[1767778312062,0.0232923,3221.6,3219.9,0.95112505]
[1767778312063,0.98823865,3221.3,3219.9,0.95112505]
[1767778312249,0.98823865,3221.1,3219.9,0.95112505]
[1767778312560,0.98823865,3221.1,3219.6,0.9841848]
[1767778313067,0.98823865,3221.1,3219.7,4.05694297]
[1767778313271,0.98823865,3221.1,3219.8,0.95112505]
[1767778313650,0.98823865,3221.1,3219.6,0.03305975]
[1767778313852,0.98823865,3220.7,3219.3,0.002]
[1767778314040,0.98823865,3220.3,3218.6,0.98219445]
[1767778314458,0.98823865,3220.3,3218.7,0.95112505]
[1767778314861,0.98823865,3220.3,3218.9,0.95112505]
[1767778315065,0.98823865,3220.6,3219.2,0.95112505]
[1767778315266,0.98823865,3220.6,3219.3,0.9821877]
[1767778315945,0.98823865,3220.6,3219.3,0.95112505]
[1767778316476,0.98823865,3220.6,3219.0,0.95112505]
[1767778316645,0.98823865,3220.6,3219.2,0.95112505]
[1767778316976,0.98823865,3220.6,3220.0,0.002]
[1767778319644,0.0232923,3221.0,3220.0,0.002]
[1767778319849,0.91837567,3221.0,3220.0,0.002]
[1767778320044,0.94166797,3220.9,3220.0,0.002]
[1767778320700,0.91837567,3220.9,3220.0,0.002]
[1767778320995,1.011435,3221.3,3220.0,0.9671585]
[1767778321147,0.91837567,3221.3,3220.1,0.03105493]
[1767778321357,0.91837567,3221.3,3220.1,0.99621343]
[1767778321594,0.97253392,3221.2,3220.0,0.0330559]
[1767778321758,0.0232923,3221.1,3220.0,0.92525366]
[1767778322156,0.97253392,3221.1,3220.0,0.92525366]
[1767778322552,0.0232923,3221.1,3220.0,0.92525366]
[1767778322747,0.97253392,3221.4,3220.1,0.92325366]
[1767778324176,0.94924162,3221.4,3220.2,0.92325366]
[1767778324479,0.0232923,3221.3,3220.2,0.92325366]
[1767778324658,0.0232923,3221.3,3220.1,3.13653522]
[1767778324659,0.001,3221.5,3220.3,0.95430666]
[1767778325461,0.001,3221.5,3220.5,0.92325366]
[1767778326962,0.001,3221.5,3220.1,0.92325366]
[1767778326963,0.95024162,3221.5,3220.1,0.92325366]
[1767778327162,0.97253392,3221.4,3220.1,0.95430859]
[1767778327366,0.94924162,3221.4,3220.3,3.10529368]
[1767778327664,0.94924162,3221.4,3220.4,0.03105204]
[1767778329088,0.94924162,3221.4,3220.1,3.10545982]
[1767778329262,0.001,3221.5,3220.2,0.95430763]
[1767778329795,0.001,3221.5,3220.4,0.92325366]
[1767778329992,0.001,3221.5,3220.5,0.95430473]
[1767778329993,0.001,3221.1,3220.5,0.95430473]
[1767778330563,0.001,3221.5,3221.0,0.92325366]
[1767778332162,0.001,3221.5,3221.1,0.92325366]
[1767778333294,0.94924162,3222.4,3221.1,0.92325366]
[1767778333489,0.94924162,3222.8,3221.1,0.92325366]
[1767778333695,0.0232923,3222.7,3221.1,0.92325366]
[1767778334085,0.0232923,3222.7,3221.3,0.92325366]
[1767778334977,0.0232923,3222.7,3221.3,0.95429702]
[1767778335175,0.001,3223.0,3221.3,0.95429702]
[1767778335482,0.001,3223.0,3221.5,0.92325366]
[1767778336104,0.001,3223.0,3221.7,0.92325366]
[1767778337798,0.97353392,3223.0,3221.4,3.10416409]
[1767778338001,0.97353392,3223.0,3221.3,0.92325366]
[1767778338309,0.97353392,3223.0,3221.5,0.03104144]
[1767778338815,0.97353392,3223.0,3220.8,0.92325366]
[1767778338816,0.94924162,3222.9,3220.8,0.92325366]
[1767778338996,0.94924162,3222.7,3220.9,0.03104722]
[1767778339331,0.94924162,3222.5,3220.9,0.03104722]
[1767778339508,0.94924162,3222.3,3220.9,0.03104722]
[1767778339670,0.97253392,3222.2,3220.9,0.03104722]
[1767778340105,0.97253392,3222.2,3220.9,3.13575437]
[1767778341007,0.94924162,3222.2,3220.9,3.13575437]
[1767778341909,0.0232923,3222.1,3220.9,0.03104722]
[1767778342208,0.0232923,3222.1,3220.9,3.13576916]
[1767778342406,0.0232923,3222.1,3220.9,0.03104722]
[1767778343010,0.0232923,3222.1,3220.9,3.1357663]
[1767778343213,0.95024162,3222.2,3220.9,4.05901996]
[1767778343512,0.0232923,3222.1,3220.9,4.05901996]
[1767778343677,0.95024162,3222.2,3220.9,4.05901996]
[1767778343878,0.95024162,3222.2,3221.0,0.92325366]
[1767778343879,0.001,3222.2,3221.0,0.92325366]
[1767778344077,0.001,3222.2,3221.3,4.02759041]
[1767778344307,0.001,3222.2,3221.3,4.05863377]
[1767778344877,0.001,3222.2,3221.3,0.95429702]
[1767778345289,0.001,3222.2,3221.3,0.03104336]
[1767778346615,0.001,3222.2,3221.3,3.13536164]
[1767778346792,0.001,3222.2,3221.4,0.92325366]
[1767778347694,0.95024162,3222.2,3220.1,0.93034073]
[1767778348017,0.94924162,3221.2,3220.0,3.10753477]
[1767778348316,0.09305933,3221.3,3220.1,0.02329323]
[1767778348503,0.09305933,3221.3,3220.0,0.002]
[1767778348504,0.09305933,3220.9,3220.0,0.002]
[1767778348701,0.94924162,3220.8,3220.0,0.002]
[1767778348901,0.94924162,3220.8,3219.7,0.02329866]
[1767778349088,1.04230095,3220.7,3219.7,0.02329866]
[1767778349289,1.04230095,3220.7,3219.6,0.002]
[1767778349290,0.09305933,3220.5,3219.6,0.002]
[1767778350911,1.04230095,3220.5,3219.6,0.002]
[1767778353492,1.04230095,3220.5,3219.9,0.002]
[1767778359111,0.93213662,3220.1,3219.6,0.002]
[1767778359290,0.93213662,3220.1,3219.5,0.002]
[1767778360029,1.02519595,3220.0,3219.5,0.002]
[1767778360528,1.02519595,3220.0,3218.7,0.02331687]
[1767778360894,0.93213662,3219.2,3218.3,0.002]
[1767778361294,0.93213662,3220.0,3218.4,3.10705363]
[1767778361532,0.93213662,3220.0,3218.6,0.93260265]
[1767778362099,0.93213662,3220.0,3218.5,6.21407486]
[1767778362330,0.93213662,3220.0,3218.4,3.10711446]
[1767778363200,0.93213662,3220.0,3218.3,3.10922687]
[1767778363816,0.93213662,3220.0,3218.3,7.14906004]
[1767778364013,0.93213662,3220.0,3218.3,4.04182952]
[1767778364199,0.93213662,3220.0,3218.3,6.21645739]
[1767778364404,0.93213662,3220.0,3218.3,7.14906004]
[1767778364603,0.93213662,3220.0,3218.4,0.93260265]
[1767778365603,0.93213662,3220.0,3218.5,3.10703743]
[1767778365809,0.93213662,3220.0,3218.4,0.93260265]
[1767778366109,0.9709577,3219.9,3218.4,4.03971915]
[1767778366321,0.9709577,3219.9,3218.9,0.002]
[1767778366929,0.001,3220.2,3218.9,0.002]
[1767778367120,0.03981746,3220.2,3218.9,0.002]
[1767778367315,0.97195408,3220.2,3218.9,0.002]
[1767778368020,0.97095529,3220.1,3218.9,0.002]
[1767778368226,0.93213662,3219.9,3218.9,0.002]
[1767778368406,0.9709589,3219.8,3218.9,0.002]
[1767778371619,0.93213662,3219.7,3218.9,0.002]
[1767778371809,0.93213662,3219.5,3218.9,0.002]
[1767778373229,0.03882711,3219.4,3218.9,0.002]
[1767778373960,0.97096373,3219.4,3218.5,0.002]
[1767778374450,0.93213662,3219.4,3218.5,0.002]
[1767778375316,0.97096493,3219.3,3218.5,0.002]
[1767778375823,0.93213662,3219.3,3218.5,0.002]
[1767778376223,0.93213662,3219.6,3218.5,0.002]
[1767778376449,0.0388259,3219.5,3218.5,0.002]
[1767778376633,0.0388259,3219.5,3218.5,0.93460265]
[1767778376853,0.03882108,3219.9,3218.5,0.93460265]
[1767778377723,0.93213662,3219.9,3218.5,0.93460265]
[1767778377948,0.93213662,3219.9,3218.7,0.93260265]
[1767778378454,0.9709589,3219.8,3218.5,0.002]
[1767778378645,0.9709589,3219.8,3218.5,3.10903198]
[1767778379020,0.9709589,3219.8,3218.5,4.04163463]
[1767778379328,0.001,3219.6,3218.5,4.04163463]
[1767778380161,0.001,3219.6,3218.6,0.93260265]
[1767778381073,0.93213662,3220.1,3218.6,0.93260265]
[1767778381215,0.93213662,3220.1,3218.5,0.002]
[1767778381216,0.001,3220.2,3219.0,0.93260265]
[1767778382445,0.001,3220.2,3219.2,0.92970347]
[1767778382651,0.001,3220.2,3219.3,0.92970347]
[1767778383552,0.001,3220.2,3218.8,0.92970347]
[1767778384118,0.001,3220.2,3219.0,3.10652469]
[1767778384416,0.001,3220.2,3219.0,4.03622816]
[1767778384614,0.001,3220.2,3219.1,0.92970347]
[1767778386551,0.001,3220.2,3219.2,6.21272364]
[1767778386743,0.001,3220.2,3219.2,7.14242711]
[1767778387252,0.001,3220.2,3219.2,4.03606529]
[1767778387750,0.001,3220.2,3219.3,0.95678394]
[1767778388519,0.001,3220.2,3219.5,0.95678394]
[1767778388725,0.96360759,3220.2,3218.9,3.10659438]
[1767778388921,0.96260759,3220.0,3218.9,3.10659438]
[1767778389123,0.96260759,3220.0,3219.0,3.10654456]
[1767778389849,0.96260759,3220.0,3218.5,0.002]
[1767778390056,0.96260759,3220.0,3219.3,3.10623995]
[1767778390229,0.96260759,3220.0,3218.7,3.1068073]
[1767778390230,0.96260759,3220.0,3219.2,3.10630654]
[1767778390744,0.96260759,3220.0,3218.5,0.95878394]
[1767778391153,0.001,3220.2,3219.3,0.002]
[1767778391454,0.001,3219.9,3219.3,0.002]
[1767778398164,0.96360759,3219.9,3219.3,0.002]
[1767778404545,0.001,3219.9,3219.3,0.002]
[1767778406675,0.96360759,3219.9,3219.3,0.002]
[1767778407180,0.001,3219.9,3219.3,0.002]
[1767778409270,0.96360759,3219.9,3219.3,0.002]
[1767778412383,0.001,3219.9,3219.3,0.002]
[1767778412692,0.001,3219.9,3219.3,0.90593737]
[1767778412976,0.001,3220.2,3219.3,0.90593737]
[1767778413180,0.001,3220.2,3219.5,0.90393737]
[1767778414165,0.98134549,3220.8,3219.5,0.90393737]
[1767778415176,0.98134549,3220.8,3219.6,0.002]
[1767778415378,0.98134549,3220.8,3219.6,6.21395178]
[1767778415786,0.98134549,3220.8,3219.6,7.11788915]
[1767778416178,0.98134549,3220.8,3219.7,0.90393737]
[1767778416384,0.98134549,3220.8,3219.8,0.90393737]
[1767778416690,0.03880059,3221.6,3219.8,0.90393737]
[1767778416691,0.98134549,3221.5,3219.8,0.90393737]
[1767778416897,0.98134549,3221.3,3219.8,0.90393737]
[1767778417465,0.98134549,3221.3,3220.0,0.90393737]
[1767778419266,0.09305933,3221.7,3220.0,0.90393737]
[1767778419267,1.0201509,3221.2,3220.0,0.90393737]
[1767778420796,1.0201509,3221.2,3220.0,4.0095258]
[1767778421189,1.0201509,3221.2,3220.1,0.90393737]
[1767778422593,0.98134549,3221.2,3220.2,0.90393737]
[1767778423465,0.98134549,3221.6,3220.2,0.90393737]
[1767778423772,0.98134549,3221.6,3220.5,3.1051079]
[1767778423972,0.98134549,3221.6,3220.5,4.00904527]
[1767778424176,0.98134549,3221.6,3220.6,0.90393737]
[1767778425107,0.0388018,3221.5,3220.6,0.90393737]
[1767778425512,1.02014729,3221.5,3220.6,0.90393737]
[1767778426128,1.02014729,3221.5,3219.7,3.91683027]
[1767778426129,1.02014729,3221.5,3219.9,0.90393737]
[1767778426417,1.02014729,3221.5,3220.0,0.90393737]
[1767778426581,1.02014729,3221.5,3219.8,3.10578296]
[1767778427016,1.02014729,3221.5,3219.9,0.90393737]
[1767778427789,1.02014729,3221.5,3219.8,0.002]
[1767778428004,0.98134549,3221.0,3219.8,0.002]
[1767778428204,0.98134549,3220.9,3219.8,0.002]
[1767778428421,0.98134549,3220.7,3219.8,0.002]
[1767778431517,0.98134549,3220.6,3219.8,0.002]
[1767778434611,0.98134549,3220.5,3219.8,0.002]
[1767778437133,0.98134549,3221.1,3219.8,0.002]
[1767778438406,3.10543715,3221.2,3219.8,0.002]
[1767778438407,0.98134549,3220.9,3219.8,0.002]
[1767778438613,0.98134549,3220.7,3219.8,0.002]
[1767778438812,0.98134549,3221.0,3219.9,0.90393737]
[1767778439129,0.98134549,3220.8,3219.9,0.90393737]
[1767778439311,0.98134549,3220.8,3219.8,0.002]
[1767778439634,0.90756635,3220.6,3219.8,0.002]
[1767778440325,0.94638019,3220.5,3220.1,0.002]
[1767778440727,0.90856635,3220.4,3220.1,0.002]
[1767778441302,0.90756635,3220.2,3220.1,0.002]
[1767778441708,0.90756635,3220.2,3219.8,0.002]
[1767778442514,0.90756635,3220.2,3219.6,0.002]
[1767778445110,0.97581575,3220.1,3219.6,0.002]
[1767778445313,0.97581575,3219.9,3219.3,0.002]
[1767778445511,0.97581575,3219.9,3219.0,0.002]
[1767778446430,0.97581575,3219.8,3219.0,0.002]
[1767778446635,0.97581575,3219.8,3218.3,0.002]
[1767778448512,0.97581575,3219.6,3218.3,0.002]
[1767778448712,0.97581575,3219.4,3218.3,0.002]
[1767778449146,0.97581575,3219.4,3218.0,0.002]
[1767778450621,0.97581575,3219.2,3218.0,0.002]
[1767778451450,1.06887508,3219.2,3217.7,0.002]
[1767778451656,0.97581575,3219.0,3217.7,0.002]
[1767778452237,0.97581575,3219.0,3217.7,0.90472333]
[1767778452615,0.97581575,3218.9,3217.7,0.90472333]
[1767778454242,0.97581575,3218.9,3218.0,0.002]
[1767778454467,0.97581575,3218.9,3217.7,0.002]
[1767778454674,0.97581575,3218.7,3217.7,0.002]
[1767778456825,0.97581575,3218.6,3217.7,0.002]
[1767778457215,0.97581575,3218.4,3216.4,0.002]
[1767778457422,0.09305933,3217.9,3215.7,0.90272333]
[1767778457654,0.09305933,3216.9,3215.7,0.90272333]
[1767778457820,0.09305933,3216.7,3215.7,0.90272333]
[1767778458017,0.09305933,3216.4,3215.5,0.54803719]
[1767778458222,0.09305933,3216.2,3215.5,0.54803719]
[1767778458454,1.06887508,3216.4,3215.5,0.54803719]
[1767778458655,0.09305933,3216.7,3215.6,3.10981671]
[1767778458825,0.97581575,3216.8,3215.6,3.10981671]
[1767778459158,0.97581575,3216.8,3215.6,6.21965624]
[1767778459317,0.97581575,3216.8,3215.6,3.10981671]
[1767778459739,0.97581575,3216.8,3215.5,4.56068424]
[1767778459970,0.97581575,3216.8,3215.5,4.56068998]
[1767778460175,0.97581575,3216.8,3215.5,1.45076052]
[1767778460473,0.97581575,3216.8,3215.5,0.54803719]
[1767778460878,0.97581575,3216.8,3215.6,0.90272333]
[1767778461054,0.97581575,3217.4,3215.6,0.90272333]
[1767778461256,0.97581575,3217.0,3215.6,0.90272333]
[1767778461660,0.97581575,3217.4,3215.6,0.90272333]
[1767778461971,0.97581575,3217.2,3215.5,3.65793664]
[1767778462183,0.97581575,3217.0,3215.5,0.54803719]
[1767778462542,0.97581575,3217.0,3215.5,3.65792803]
[1767778462738,0.97581575,3217.0,3215.6,0.90272333]
[1767778462937,0.97581575,3217.0,3215.8,0.90272333]
[1767778463140,0.97581575,3217.0,3215.5,6.26836427]
[1767778463373,0.97581575,3217.0,3215.5,3.15842803]
[1767778463684,0.97581575,3216.8,3215.5,0.04853719]
[1767778464346,0.97581575,3216.6,3215.5,0.04853719]
[1767778465352,0.09305933,3216.9,3215.5,3.15846322]
[1767778465552,0.09305933,3216.9,3215.5,4.06118655]
[1767778465954,1.06887508,3216.9,3215.5,4.06118655]
[1767778466156,0.97581575,3217.3,3215.6,0.90272333]
[1767778466380,0.03885366,3217.2,3215.6,0.90272333]
[1767778466567,1.01466941,3217.2,3215.6,0.90272333]
[1767778466769,1.01466941,3217.2,3215.7,6.21948564]
[1767778466971,1.01466941,3217.2,3215.7,4.01246615]
[1767778467574,0.97581575,3217.1,3215.5,0.04853719]
[1767778467887,0.97581575,3216.9,3215.8,0.002]
[1767778468051,0.97581575,3216.7,3215.8,0.002]
[1767778468247,0.97681575,3216.7,3215.8,0.002]
[1767778468858,0.97581575,3216.6,3215.8,0.002]
[1767778469065,0.97581575,3216.4,3215.8,0.002]
[1767778469587,0.0398597,3216.7,3215.8,0.002]
[1767778469951,1.01567545,3216.7,3215.8,0.002]
[1767778470582,0.97581575,3216.6,3215.8,0.002]
[1767778470800,0.03886211,3216.5,3215.8,0.002]
[1767778470958,1.01467786,3216.5,3215.8,0.002]
[1767778471279,0.03886211,3216.5,3215.8,0.002]
[1767778471754,0.0398597,3216.7,3215.8,0.002]
[1767778472166,1.00318547,3216.7,3215.8,0.002]
[1767778472668,0.0398597,3216.7,3215.8,0.002]
[1767778472890,0.0388609,3216.6,3215.8,0.002]
[1767778473907,0.03886211,3216.5,3215.8,0.002]
[1767778474295,0.96432577,3216.7,3215.8,0.002]
[1767778474599,0.96332577,3217.1,3215.8,0.98842993]
[1767778474802,0.09305933,3217.6,3215.8,0.98842993]
[1767778474803,0.96332577,3217.5,3215.8,0.98842993]
[1767778474995,0.03885124,3217.4,3216.0,0.98642993]
[1767778475191,0.03885124,3217.4,3216.1,0.98642993]
[1767778475500,1.00217701,3217.4,3216.1,0.98642993]
[1767778475689,1.00217701,3217.4,3215.8,0.002]
[1767778475873,0.03885245,3217.3,3215.9,0.98642993]
[1767778477104,0.03885245,3217.3,3216.0,3.10945273]
[1767778477308,0.03885245,3217.3,3216.0,4.09588266]
[1767778478882,0.96332577,3217.8,3216.1,0.98642993]
[1767778479087,0.03884762,3217.7,3216.1,0.98642993]
[1767778479281,0.96332577,3217.8,3216.3,0.98642993]
[1767778479484,0.03884762,3217.7,3216.5,0.98642993]
[1767778480104,1.00217339,3217.7,3216.5,0.98642993]
[1767778480324,1.00217339,3217.7,3216.2,3.10925937]
[1767778480480,0.001,3217.0,3216.2,3.10925937]
[1767778481201,0.001,3217.0,3216.1,4.0977719]
[1767778482106,0.001,3217.0,3216.1,0.002]
[1767778482558,0.96432577,3217.0,3216.1,0.002]
[1767778482723,0.96332577,3216.8,3216.1,0.002]
[1767778483410,0.001,3217.0,3216.1,0.002]
[1767778483631,0.03985607,3217.0,3216.1,0.002]
[1767778484616,0.001,3217.0,3216.1,0.002]
[1767778485341,0.03985607,3217.0,3216.1,0.002]
[1767778485807,0.001,3217.0,3216.1,0.002]
[1767778486011,0.03985607,3217.0,3216.1,0.002]
[1767778486609,0.001,3217.0,3216.1,0.002]
[1767778487017,0.96432577,3217.0,3216.1,0.002]
[1767778487238,0.96332577,3216.8,3216.1,0.002]
[1767778487409,0.0388597,3216.7,3216.1,0.002]
[1767778487614,0.96332577,3216.8,3216.1,0.002]
[1767778489658,0.001,3217.0,3216.1,0.002]
[1767778490234,0.03985607,3217.0,3216.1,0.002]
[1767778490438,1.00318184,3217.0,3216.1,0.002]
[1767778492137,0.96432577,3217.0,3216.1,0.002]
[1767778492466,0.001,3216.7,3216.1,0.002]
[1767778494563,0.001,3216.7,3216.1,0.98842993]
[1767778494765,0.001,3217.0,3216.5,0.98642993]
[1767778495070,0.96332577,3217.8,3216.5,0.98642993]
[1767778495950,0.96332577,3217.8,3216.6,4.09530265]
[1767778495951,0.03884762,3217.7,3216.6,4.09530265]
[1767778496464,0.96332577,3217.8,3216.6,4.09530265]
[1767778496660,0.03884279,3218.1,3216.7,0.98642993]
[1767778496860,1.00216856,3218.1,3216.7,0.98642993]
[1767778497062,0.96332577,3218.1,3216.7,0.98642993]
[1767778497279,1.00216856,3218.1,3216.7,0.98642993]
[1767778497448,0.96332577,3218.0,3216.5,3.10895183]
[1767778497655,0.96332577,3217.8,3216.5,3.10895183]
[1767778497844,0.03884762,3217.7,3216.4,3.10906603]
[1767778498840,0.038844,3218.0,3216.5,0.98642993]
[1767778499053,0.0388452,3217.9,3216.5,0.98642993]
[1767778499278,0.96332577,3217.9,3216.5,0.98642993]
[1767778499465,3.10735143,3218.2,3216.5,0.98642993]
[1767778499466,0.90614832,3217.7,3216.5,0.98642993]
[1767778499667,0.03884883,3217.6,3216.5,0.98642993]
[1767778499863,0.90614832,3217.5,3216.1,0.95984347]
[1767778500066,0.90614832,3217.5,3216.2,4.06710284]
[1767778500286,0.03885124,3217.4,3216.4,0.95784347]
[1767778500480,0.90614832,3217.7,3216.4,0.95784347]
[1767778500683,0.03884883,3217.6,3216.4,0.95784347]
[1767778500857,3.1073177,3218.3,3216.4,0.95784347]
[1767778500858,0.90614832,3218.3,3216.4,0.95784347]
[1767778501047,0.90614832,3218.3,3216.6,0.95784347]
[1767778501747,0.03884158,3218.2,3216.6,0.95784347]
[1767778501944,0.03884158,3218.2,3216.8,0.99338368]
[1767778502144,0.96745655,3218.1,3216.6,0.99338368]
[1767778502345,0.96745655,3217.9,3216.2,0.99338368]
[1767778502546,0.96745655,3217.7,3216.1,0.002]
[1767778502750,0.96745655,3217.5,3216.1,0.002]
[1767778502951,0.96745655,3217.3,3216.1,0.002]
[1767778503160,0.96745655,3217.1,3216.1,0.002]
[1767778503371,1.00631262,3217.0,3216.1,0.002]
[1767778504486,1.00631262,3217.0,3216.4,0.002]
[1767778505897,0.96745655,3216.9,3216.4,0.002]
[1767778506053,1.37893865,3216.8,3216.4,0.002]
[1767778506756,0.96745655,3216.7,3216.1,0.002]
[1767778510264,0.96745655,3216.6,3216.1,0.002]
[1767778511189,3.10871793,3216.8,3216.0,0.002]
[1767778511190,0.96745655,3216.5,3216.0,0.002]
[1767778512059,0.96745655,3216.9,3216.0,0.002]
[1767778512268,0.03885849,3216.8,3216.0,0.002]
[1767778514802,1.006309,3217.3,3216.0,0.002]
[1767778515003,1.37889812,3217.2,3216.0,0.002]
[1767778515207,0.96745655,3217.2,3216.0,0.002]
[1767778516017,0.09305933,3217.8,3216.0,0.99538368]
[1767778516018,0.96745655,3217.7,3216.0,0.99538368]
[1767778516333,0.03884883,3217.6,3216.0,0.99538368]
[1767778516628,0.03884883,3217.6,3216.2,0.99338368]
[1767778516788,0.96745655,3217.7,3216.2,0.99338368]
[1767778516993,0.96745655,3217.5,3216.3,0.002]
[1767778517244,0.001,3217.4,3216.3,0.99538368]
[1767778520517,0.001,3217.4,3216.4,6.21813206]
[1767778521119,0.001,3217.4,3216.4,7.21151574]
[1767778521621,0.96845655,3217.4,3216.3,0.002]
[1767778521824,0.96745655,3217.2,3216.3,0.002]
[1767778522031,0.96745655,3217.0,3216.3,0.002]
[1767778522227,0.03885728,3216.9,3216.3,0.002]
[1767778522395,0.03885728,3216.9,3216.0,0.002]
[1767778522396,1.00631383,3216.9,3216.0,0.002]
[1767778522597,0.96745655,3216.7,3214.8,0.99538368]
[1767778522823,0.96745655,3216.5,3214.8,0.99538368]
[1767778523026,0.96745655,3216.5,3214.8,4.10593268]
[1767778523224,0.96745655,3216.5,3214.8,0.99538368]
[1767778523447,0.40691081,3216.5,3214.8,0.002]
[1767778523649,0.40691081,3216.5,3214.8,3.11254956]
[1767778523650,0.96745655,3216.4,3214.8,3.11254956]
[1767778523850,0.96745655,3216.4,3214.8,0.002]
[1767778524219,0.96745655,3216.4,3214.8,3.11259386]
[1767778524848,0.96745655,3216.2,3214.8,0.002]
[1767778526715,0.96745655,3216.1,3214.8,0.002]
[1767778526916,0.96745655,3215.9,3214.8,0.002]
[1767778527819,0.96745655,3215.9,3214.9,3.1105033]
[1767778528117,0.96745655,3215.9,3215.0,3.17040924]
[1767778528449,0.96745655,3216.4,3215.0,6.28082914]
[1767778528648,0.96745655,3216.4,3215.0,7.27421282]
[1767778528949,0.96745655,3216.4,3215.0,4.16379292]
[1767778529136,0.96745655,3216.4,3215.3,0.002]
[1767778530241,0.96745655,3216.8,3215.3,0.99538368]
[1767778530959,0.0388597,3216.7,3215.4,7.2134496]
[1767778531122,0.0388597,3216.7,3215.5,0.99338368]
[1767778532934,0.96745655,3216.8,3215.6,4.07970583]
[1767778533134,0.001,3217.1,3215.6,4.07970583]
[1767778533135,0.001,3217.1,3215.7,0.9698663]
[1767778533337,1.00011725,3217.1,3215.7,0.9698663]
[1767778533525,0.03885607,3217.0,3215.7,0.9698663]
[1767778534540,1.00011725,3217.1,3215.7,0.9698663]
[1767778534740,0.03885607,3217.0,3215.7,0.9698663]
[1767778534957,0.03885607,3217.0,3215.9,4.07941572]
[1767778535154,1.03797332,3217.0,3215.4,0.9698663]
[1767778535460,1.03797332,3217.0,3215.5,3.10987208]
[1767778535761,1.03797332,3217.0,3215.4,4.07988293]
[1767778535953,1.03797332,3217.0,3215.4,0.9698663]
[1767778535954,0.99911725,3216.8,3215.4,0.9698663]
[1767778536155,0.0388597,3216.7,3215.6,3.10981004]
[1767778536357,0.03885849,3216.8,3215.7,0.9698663]
[1767778536565,0.03885849,3216.8,3215.8,3.10963939]
[1767778536735,0.99911725,3216.7,3215.3,0.9718663]
[1767778536924,0.99911725,3216.7,3215.3,4.08198352]
[1767778537129,0.03985486,3217.1,3215.3,4.08198352]
[1767778537130,1.03797815,3216.6,3215.4,3.11003296]
[1767778537855,1.03797815,3216.6,3215.4,6.22006592]
[1767778538055,0.99911725,3216.6,3215.4,6.22006592]
[1767778538259,0.03886211,3216.5,3215.4,6.22006592]
[1767778538464,0.99911725,3217.0,3215.5,0.9698663]
[1767778538635,1.03797453,3216.9,3215.5,0.9698663]
[1767778539032,1.03797453,3216.9,3215.6,3.10983953]
[1767778539338,0.99911725,3216.9,3215.6,4.07970583]
[1767778539664,1.03797574,3216.8,3215.6,0.9698663]
[1767778540436,1.03797574,3216.8,3215.3,0.002]
[1767778541161,1.03797574,3216.8,3215.3,6.22225938]
[1767778541549,1.03797574,3216.8,3215.3,7.19212568]
[1767778541750,0.001,3216.7,3215.4,0.9698663]
[1767778542233,0.001,3216.7,3215.4,1.06292563]
[1767778542428,0.001,3217.1,3215.6,0.09305933]
[1767778542654,0.001,3217.1,3215.7,0.9698663]
[1767778543164,0.001,3217.1,3215.9,0.9698663]
[1767778543373,0.001,3217.1,3216.1,0.9698663]
[1767778545340,0.001,3217.1,3216.3,0.9698663]
[1767778545942,0.001,3217.1,3216.1,3.10934179]
[1767778547661,0.001,3217.1,3216.2,0.9698663]
[1767778549644,0.001,3217.1,3215.9,3.10950252]
[1767778549645,0.001,3217.1,3216.4,0.9698663]
[1767778550072,0.001,3217.4,3216.4,0.9698663]
[1767778551281,0.99911725,3217.9,3216.7,0.9698663]
[1767778551643,0.99911725,3217.9,3216.8,6.21735886]
[1767778551856,0.99911725,3217.9,3216.8,9.32603829]
[1767778552058,0.99911725,3217.9,3216.8,6.21735886]
[1767778552775,0.99911725,3217.9,3216.8,9.32603829]
[1767778552981,0.001,3218.0,3216.9,0.9698663]
[1767778553348,1.00011725,3218.0,3216.8,6.21735886]
[1767778553587,1.00011725,3218.0,3216.6,6.21774544]
[1767778553773,0.84694861,3218.0,3216.6,6.21774544]
[1767778554001,0.84694861,3218.0,3216.6,7.18761174]
[1767778554171,0.99911725,3217.8,3216.4,0.812]
[1767778554377,0.99911725,3217.6,3216.4,0.812]
[1767778554578,0.99911725,3217.4,3216.4,0.812]
[1767778554905,0.99911725,3217.2,3216.4,0.812]
[1767778556381,0.99911725,3217.2,3215.8,3.1096084]
[1767778556577,0.99911725,3217.2,3215.3,3.11206585]
[1767778556578,0.99911725,3217.1,3215.3,0.002]
[1767778556797,0.99911725,3217.1,3215.5,3.1098681]
[1767778557013,0.99911725,3217.1,3215.6,3.10981743]
[1767778557196,0.99911725,3216.9,3215.7,3.10972724]
[1767778557592,0.99911725,3216.9,3215.3,0.9718663]
[1767778557900,0.99911725,3216.9,3215.5,0.9698663]
[1767778559704,0.99911725,3216.9,3215.7,0.94937862]
[1767778560084,0.98354797,3217.5,3215.7,0.94937862]
[1767778560280,0.98354797,3217.3,3215.9,0.94937862]
[1767778560509,1.02240163,3217.2,3215.6,6.21967906]
[1767778560708,1.02240163,3217.2,3215.6,3.10983953]
[1767778560878,0.42234206,3217.4,3215.6,3.14093792]
[1767778561200,1.02234684,3217.3,3215.6,3.14093792]
[1767778561777,0.98227761,3217.2,3215.6,3.14093792]
[1767778562008,0.98227761,3217.0,3215.6,3.14093792]
[1767778563492,0.98227761,3217.0,3215.6,3.14091506]
[1767778564094,1.02107648,3217.0,3215.6,3.14091506]
[1767778565385,0.98227761,3217.0,3215.9,0.002]
[1767778565984,1.02107648,3216.9,3215.9,0.002]
[1767778567697,1.02107648,3216.9,3215.9,0.95217665]
[1767778568726,3.10832076,3217.2,3215.9,0.95217665]
[1767778569007,0.98227761,3217.3,3216.0,0.95017665]
[1767778569207,0.03879887,3217.2,3215.9,0.03309549]
[1767778569407,0.98227761,3217.1,3215.9,3.14261237]
[1767778571785,0.98227761,3217.0,3215.9,0.03309549]
[1767778572115,1.02107648,3216.9,3215.9,0.002]